bitfinex/quotes_BTCUSD_20241022
["timestamp","ask_amount","ask_price","bid_price","bid_amount"]
[1729634407893,0.49048766,67515.0,67514.0,0.001652]
[1729634408114,0.49048214,67515.0,67514.0,0.001652]
[1729634408546,0.30432005,67515.0,67514.0,0.001652]
[1729634408764,0.28210591,67515.0,67514.0,0.001652]
[1729634408970,0.21551572,67515.0,67514.0,0.001652]
[1729634409806,0.25847363,67515.0,67514.0,0.001652]
[1729634410440,0.46381953,67515.0,67514.0,0.001652]
[1729634410680,0.36654252,67515.0,67514.0,0.001652]
[1729634411087,0.04437009,67515.0,67514.0,0.001652]
[1729634411503,0.0497772,67516.0,67514.0,0.001652]
[1729634411709,0.1989096,67516.0,67514.0,0.001652]
[1729634411956,0.0656076,67516.0,67514.0,0.001652]
[1729634412377,0.28766926,67515.0,67514.0,0.001652]
[1729634412787,0.15436626,67515.0,67514.0,0.001652]
[1729634413005,0.28766926,67515.0,67514.0,0.001652]
[1729634413473,0.15436626,67515.0,67514.0,0.001652]
[1729634413680,0.39989505,67515.0,67514.0,0.001652]
[1729634413884,0.26659205,67515.0,67514.0,0.001652]
[1729634414094,0.44369205,67515.0,67514.0,0.001652]
[1729634414736,0.57699505,67515.0,67514.0,0.001652]
[1729634414939,0.44369205,67515.0,67514.0,0.001652]
[1729634417471,0.45084,67515.0,67514.0,0.001652]
[1729634418718,0.451666,67515.0,67514.0,0.001652]
[1729634419196,0.33944021,67515.0,67514.0,0.001652]
[1729634419641,0.33944021,67515.0,67514.0,0.00159956]
[1729634420080,0.47274321,67515.0,67514.0,0.00159956]
[1729634421209,0.53089273,67515.0,67514.0,0.00159956]
[1729634421417,0.55303744,67515.0,67514.0,0.00159956]
[1729634421840,0.70199659,67515.0,67514.0,0.00159956]
[1729634422320,0.65768663,67515.0,67514.0,0.00159956]
[1729634422529,0.70198338,67515.0,67514.0,0.00159956]
[1729634423146,0.71582579,67515.0,67514.0,0.00159956]
[1729634423572,0.67152904,67515.0,67514.0,0.00159956]
[1729634425321,0.71582085,67515.0,67514.0,0.00159956]
[1729634425490,0.67152904,67515.0,67514.0,0.00159956]
[1729634425912,0.71582085,67515.0,67514.0,0.00159956]
[1729634426317,0.18140711,67507.0,67506.0,0.001652]
[1729634426527,0.4988055,67507.0,67506.0,0.001652]
[1729634426704,0.55693991,67507.0,67506.0,0.001652]
[1729634426902,0.57912019,67507.0,67506.0,0.001652]
[1729634427284,0.56804231,67507.0,67506.0,0.001652]
[1729634427748,0.59021012,67507.0,67506.0,0.001652]
[1729634430355,0.59023942,67507.0,67506.0,0.001652]
[1729634431824,0.56808473,67507.0,67506.0,0.001652]
[1729634432201,0.59027354,67507.0,67506.0,0.001652]
[1729634433071,0.72359254,67507.0,67506.0,0.001652]
[1729634434203,5.77073201,67507.0,67506.0,0.001652]
[1729634434414,5.8861876,67507.0,67506.0,0.001652]
[1729634434637,5.81975829,67507.0,67506.0,0.001652]
[1729634435316,5.98512563,67507.0,67506.0,0.001652]
[1729634435746,5.82175829,67507.0,67506.0,0.001652]
[1729634436633,5.88812839,67507.0,67506.0,0.001652]
[1729634437986,5.87700605,67507.0,67506.0,0.001652]
[1729634438195,5.8603733,67507.0,67506.0,0.001652]
[1729634438398,5.91027153,67507.0,67506.0,0.001652]
[1729634438607,5.88809454,67507.0,67506.0,0.001652]
[1729634439031,5.89497223,67507.0,67506.0,0.001652]
[1729634439692,5.82860213,67507.0,67506.0,0.001652]
[1729634439898,5.72049849,67507.0,67506.0,0.001652]
[1729634440108,5.88381574,67507.0,67506.0,0.001652]
[1729634441426,0.23304011,67500.0,67499.0,0.22196409]
[1729634441633,0.61683107,67500.0,67499.0,0.22196409]
[1729634441851,5.68594524,67500.0,67499.0,0.22196409]
[1729634442067,0.00540711,67494.0,67493.0,0.001652]
[1729634442280,0.30127466,67494.0,67493.0,0.001652]
[1729634442484,0.32345165,67494.0,67493.0,0.001652]
[1729634442694,0.34746106,67494.0,67493.0,0.001652]
[1729634445527,5.39746106,67494.0,67493.0,0.001652]
[1729634445741,5.67861685,67494.0,67493.0,0.001652]
[1729634446361,5.70077612,67494.0,67493.0,0.001652]
[1729634446586,5.65653194,67494.0,67493.0,0.001652]
[1729634447021,5.70077612,67494.0,67493.0,0.001652]
[1729634447243,5.65653194,67494.0,67493.0,0.001652]
[1729634447678,5.52318694,67494.0,67493.0,0.001652]
[1729634447937,1.18586276,67494.0,67493.0,0.001652]
[1729634448146,1.27088694,67494.0,67493.0,0.001652]
[1729634448360,1.2939664,67494.0,67493.0,0.001652]
[1729634448576,1.27088694,67494.0,67493.0,0.001652]
[1729634448787,1.24488694,67494.0,67493.0,0.001652]
[1729634448997,0.28158407,67494.0,67493.0,0.001652]
[1729634449296,0.32684374,67494.0,67493.0,0.001652]
[1729634449538,0.36189309,67494.0,67493.0,0.001652]
[1729634449953,0.47308216,67494.0,67493.0,0.001652]
[1729634450161,0.60022652,67494.0,67493.0,0.001652]
[1729634450373,0.56699099,67494.0,67493.0,0.001652]
[1729634450583,0.59192073,67494.0,67493.0,0.001652]
[1729634450790,0.57807225,67494.0,67493.0,0.001652]
[1729634451413,0.60115427,67494.0,67493.0,0.001652]
[1729634453145,0.57807225,67494.0,67493.0,0.001652]
[1729634454271,0.58733918,67494.0,67493.0,0.001652]
[1729634454512,0.78610679,67494.0,67493.0,0.001652]
[1729634454719,0.8524819,67494.0,67493.0,0.001652]
[1729634454926,0.8544819,67494.0,67493.0,0.001652]
[1729634455389,0.78810679,67494.0,67493.0,0.001652]
[1729634455616,0.70750679,67494.0,67493.0,0.001652]
[1729634455838,0.60950679,67494.0,67493.0,0.001652]
[1729634456489,0.60950679,67494.0,67482.0,0.22196409]
[1729634456490,0.00540711,67483.0,67482.0,0.22196409]
[1729634456709,0.08851051,67483.0,67482.0,0.22196409]
[1729634457007,0.08851051,67483.0,67482.0,0.24516113]
[1729634457231,0.08851051,67483.0,67482.0,0.02319704]
[1729634457827,0.08851051,67483.0,67482.0,0.11399704]
[1729634459403,0.0663429,67483.0,67482.0,0.11399704]
[1729634459618,0.08600431,67483.0,67482.0,0.11399704]
[1729634460275,0.05000839,67483.0,67482.0,0.11399704]
[1729634460494,0.01609139,67483.0,67482.0,0.24736504]
[1729634460727,0.09095765,67483.0,67482.0,0.32536504]
[1729634460989,0.06877513,67483.0,67482.0,0.302168]
[1729634461629,0.06377513,67483.0,67482.0,0.302168]
[1729634462065,0.07486638,67483.0,67482.0,0.302168]
[1729634462288,0.06377513,67483.0,67482.0,0.302168]
[1729634462501,0.03881938,67483.0,67482.0,0.302168]
[1729634462748,0.01386406,67483.0,67482.0,0.302168]
[1729634462974,0.02773433,67483.0,67482.0,0.302168]
[1729634463413,0.03882558,67483.0,67482.0,0.302168]
[1729634465488,0.03882558,67483.0,67482.0,0.30382]
[1729634465489,0.02773433,67483.0,67482.0,0.30382]
[1729634466609,0.02774089,67483.0,67482.0,0.30382]
[1729634470104,0.02774089,67483.0,67482.0,0.30841289]
[1729634470576,0.00540711,67495.0,67483.0,0.400099]
[1729634470833,0.02220452,67492.0,67488.0,0.166]
[1729634471069,0.02220452,67492.0,67491.0,0.133351]
[1729634471324,0.02775394,67492.0,67491.0,0.133351]
[1729634471788,0.02775394,67492.0,67491.0,0.299351]
[1729634473782,0.01387689,67492.0,67491.0,0.299351]
[1729634474012,0.02774768,67492.0,67491.0,0.299351]
[1729634477575,0.04435352,67499.0,67492.0,0.133347]
[1729634477809,0.04992306,67498.0,67493.0,0.0907]
[1729634478058,0.01386755,67497.0,67493.0,0.0907]
[1729634478304,0.01386755,67496.0,67493.0,0.0907]
[1729634478529,0.04992306,67495.0,67493.0,0.0907]
[1729634478787,0.01386755,67494.0,67493.0,0.0907]
[1729634479699,0.01386755,67494.0,67493.0,0.224047]
[1729634481564,0.01386574,67494.0,67493.0,0.224047]
[1729634484823,0.01386543,67494.0,67493.0,0.0907]
[1729634485042,0.01386543,67494.0,67493.0,0.49074]
[1729634485934,0.01386543,67494.0,67493.0,0.57304]
[1729634488491,0.04436412,67502.0,67494.0,0.133344]
[1729634488732,0.0360699,67501.0,67494.0,0.133344]
[1729634489009,0.0360699,67500.0,67494.0,0.133344]
[1729634489234,0.15486074,67504.0,67494.0,0.133344]
[1729634489235,0.0360699,67499.0,67494.0,0.133344]
[1729634489466,0.0360699,67498.0,67494.0,0.133344]
[1729634489710,0.0360699,67497.0,67494.0,0.133344]
[1729634489960,0.0360699,67496.0,67494.0,0.0907]
[1729634490178,0.0360699,67495.0,67494.0,0.224045]
[1729634490409,0.01387304,67495.0,67494.0,0.224045]
[1729634491730,0.0360699,67495.0,67494.0,0.224045]
[1729634491961,0.01387304,67495.0,67494.0,0.224045]
[1729634493339,0.04436412,67503.0,67495.0,0.133342]
[1729634493556,0.0222074,67501.0,67495.0,0.133342]
[1729634493765,0.06657152,67502.0,67495.0,0.133342]
[1729634493981,0.01387993,67501.0,67495.0,0.133342]
[1729634494200,0.03608733,67500.0,67495.0,0.133342]
[1729634494461,0.00604316,67501.0,67495.0,0.133342]
[1729634494462,0.03608733,67499.0,67495.0,0.133342]
[1729634494673,0.03608733,67498.0,67495.0,0.133342]
[1729634494894,0.03608733,67497.0,67495.0,0.133342]
[1729634495132,0.03608733,67496.0,67495.0,0.133342]
[1729634496076,0.01387993,67496.0,67495.0,0.133342]
[1729634496532,0.03608733,67496.0,67495.0,0.133342]
[1729634497246,0.03608733,67496.0,67494.0,0.224044]
[1729634497488,0.03608733,67495.0,67494.0,0.224044]
[1729634497746,0.01387993,67495.0,67494.0,0.224044]
[1729634498699,0.03608733,67495.0,67494.0,0.224044]
[1729634502109,0.03691333,67495.0,67494.0,0.224044]
[1729634502804,0.01470593,67495.0,67494.0,0.12505799]
[1729634504277,0.000826,67495.0,67494.0,0.12505799]
[1729634504498,0.01471627,67495.0,67494.0,0.12505799]
[1729634504715,0.01471639,67495.0,67494.0,0.12505799]
[1729634505137,0.03694102,67495.0,67494.0,0.12505799]
[1729634506431,0.01471639,67495.0,67494.0,0.12505799]
[1729634508163,0.01471736,67495.0,67494.0,0.12505799]
[1729634510358,0.02075432,67495.0,67494.0,0.12505799]
[1729634510562,0.01471736,67495.0,67494.0,0.12505799]
[1729634510806,0.02075432,67495.0,67494.0,0.12505799]
[1729634512103,0.02075589,67495.0,67494.0,0.12505799]
[1729634512956,0.04298458,67495.0,67494.0,0.12505799]
[1729634514297,0.04298458,67495.0,67493.0,0.083952]
[1729634514531,0.03612162,67494.0,67493.0,0.083952]
[1729634514772,0.03612162,67494.0,67493.0,0.217299]
[1729634514981,0.04211927,67494.0,67493.0,0.217299]
[1729634519492,0.08654506,67494.0,67493.0,0.217299]
[1729634519947,0.04211927,67494.0,67493.0,0.217299]
[1729634527055,0.0421192,67494.0,67493.0,0.217299]
[1729634527484,0.08657143,67494.0,67493.0,0.217299]
[1729634527676,0.0421192,67494.0,67493.0,0.217299]
[1729634529378,0.0421192,67494.0,67493.0,0.291399]
[1729634530942,0.04212032,67494.0,67493.0,0.291399]
[1729634532578,0.01989098,67494.0,67493.0,0.291399]
[1729634535066,0.01389333,67494.0,67493.0,0.291399]
[1729634535819,0.02014267,67494.0,67493.0,0.291399]
[1729634536733,0.02096867,67494.0,67493.0,0.291399]
[1729634538520,0.02096736,67494.0,67493.0,0.291399]
[1729634546035,0.02096711,67494.0,67493.0,0.291399]
[1729634549730,0.00707534,67494.0,67493.0,0.291399]
[1729634549986,0.02096751,67494.0,67493.0,0.291399]
[1729634553149,0.02096751,67494.0,67493.0,0.63348643]
[1729634553376,0.00707534,67494.0,67493.0,0.98261768]
[1729634553613,0.000826,67494.0,67493.0,0.6973104]
[1729634553856,0.000826,67494.0,67493.0,1.05960233]
[1729634554333,0.000826,67494.0,67493.0,0.96656694]
[1729634554572,0.000826,67494.0,67493.0,0.88698618]
[1729634555070,0.000826,67494.0,67493.0,0.96108618]
[1729634555774,0.000826,67494.0,67493.0,0.89458229]
[1729634556676,0.000826,67494.0,67493.0,0.93889411]
[1729634557129,0.000826,67494.0,67493.0,1.08985326]
[1729634557379,0.000826,67494.0,67493.0,1.19100728]
[1729634557615,0.22196409,67513.0,67504.0,0.32674186]
[1729634557860,0.22196409,67513.0,67504.0,0.64496927]
[1729634558134,0.000826,67514.0,67513.0,0.45172386]
[1729634558363,0.22296409,67528.0,67514.0,0.45172186]
[1729634558587,0.22296409,67528.0,67514.0,0.74477929]
[1729634558814,0.22196409,67521.0,67514.0,0.74277929]
[1729634559028,0.22296409,67528.0,67514.0,0.70678465]
[1729634559266,0.22296409,67528.0,67514.0,0.96384744]
[1729634559705,0.22296409,67528.0,67514.0,0.96584744]
[1729634561061,0.001,67528.0,67514.0,0.96584744]
[1729634561282,0.001,67528.0,67527.0,0.23787289]
[1729634561500,0.001,67528.0,67527.0,0.69479699]
[1729634561716,0.001,67528.0,67527.0,0.94690457]
[1729634561939,0.001,67528.0,67527.0,0.83880093]
[1729634563506,0.001,67528.0,67527.0,0.73069729]
[1729634563731,0.001,67528.0,67527.0,0.83880093]
[1729634564202,0.001,67528.0,67527.0,0.31627289]
[1729634564441,0.001,67528.0,67527.0,0.42437653]
[1729634572539,0.001826,67528.0,67527.0,0.42437653]
[1729634573299,0.001826,67528.0,67527.0,0.31627289]
[1729634582266,0.001826,67528.0,67527.0,0.42437653]
[1729634584135,0.001826,67528.0,67527.0,0.81383703]
[1729634584407,0.001678,67543.0,67542.0,0.23784289]
[1729634584722,0.001678,67543.0,67542.0,0.57826646]
[1729634584953,0.01252232,67543.0,67542.0,0.57530568]
[1729634585249,0.001678,67543.0,67542.0,0.57530568]
[1729634585498,0.001678,67543.0,67542.0,0.71428135]
[1729634590071,0.001678,67543.0,67542.0,0.57530568]
[1729634591314,0.001678,67543.0,67542.0,0.46720204]
[1729634592251,0.001678,67543.0,67542.0,0.57530568]
[1729634596361,0.001678,67543.0,67542.0,0.46720204]
[1729634596617,0.001678,67543.0,67542.0,0.57530568]
[1729634597124,0.001678,67543.0,67542.0,0.46720204]
[1729634597347,0.001678,67543.0,67542.0,0.71428135]
[1729634598283,0.001678,67543.0,67542.0,0.83258135]
[1729634599244,0.001678,67543.0,67542.0,0.69360568]
[1729634608963,0.001678,67543.0,67542.0,0.70352965]
[1729634609655,0.001678,67543.0,67542.0,1.03859738]
[1729634609912,0.001678,67543.0,67542.0,0.84627329]
[1729634610158,0.001678,67543.0,67542.0,0.70852965]
[1729634610392,0.001678,67543.0,67542.0,0.96559244]
[1729634614414,0.00143766,67543.0,67542.0,0.96559244]
[1729634614754,0.00097556,67543.0,67542.0,0.96559244]
[1729634615841,0.00097556,67543.0,67542.0,0.8574888]
[1729634616909,0.00097556,67543.0,67542.0,0.8634098]
[1729634618258,0.00081453,67543.0,67542.0,0.8634098]
[1729634622512,0.00081453,67543.0,67542.0,0.8654098]
[1729634622726,0.00081453,67543.0,67542.0,0.97151344]
[1729634625811,0.00081453,67543.0,67542.0,1.01566525]
[1729634626241,0.00081453,67543.0,67542.0,0.79945797]
[1729634626452,0.00081453,67543.0,67542.0,1.01566525]
[1729634627872,0.00081453,67543.0,67542.0,0.75530616]
[1729634628087,0.00081453,67543.0,67542.0,0.97151344]
[1729634630392,0.00081453,67543.0,67542.0,0.97316344]
[1729634630592,0.00081453,67543.0,67542.0,0.60299701]
[1729634630800,0.00081453,67543.0,67542.0,0.50647965]
[1729634631410,0.00081453,67543.0,67542.0,0.38845204]
[1729634631618,0.18608557,67543.0,67542.0,0.00165]
[1729634631815,0.21105369,67543.0,67542.0,0.1349]
[1729634632033,0.21835578,67543.0,67542.0,0.00165]
[1729634632211,0.45279219,67543.0,67542.0,0.00165]
[1729634632424,0.48868085,67543.0,67542.0,0.00165]
[1729634632667,0.48868085,67543.0,67542.0,0.1349]
[1729634632668,0.21835578,67543.0,67542.0,0.1349]
[1729634633099,0.24052384,67543.0,67542.0,0.1349]
[1729634633326,0.24052384,67543.0,67542.0,0.13949289]
[1729634633572,0.0358588,67543.0,67542.0,0.13949289]
[1729634633742,0.01468557,67543.0,67542.0,0.13949289]
[1729634633960,0.00081453,67543.0,67542.0,0.4704671]
[1729634634180,0.00081453,67543.0,67542.0,0.6085338]
[1729634634412,0.00081453,67543.0,67542.0,0.50043016]
[1729634634635,0.00081453,67543.0,67542.0,0.23949289]
[1729634635315,0.01466116,67543.0,67542.0,0.23949289]
[1729634635522,0.01465901,67543.0,67542.0,0.23949289]
[1729634635740,0.014659,67543.0,67542.0,0.34759653]
[1729634635952,0.00081453,67543.0,67542.0,0.34759653]
[1729634637523,0.00081453,67543.0,67542.0,0.38845204]
[1729634638218,0.00081453,67543.0,67542.0,0.23949289]
[1729634638430,0.00081453,67543.0,67542.0,0.49655568]
[1729634639088,0.00081453,67543.0,67542.0,0.38845204]
[1729634639325,0.00081453,67543.0,67542.0,0.23949289]
[1729634641080,0.00081453,67543.0,67542.0,0.48046712]
[1729634641309,0.00081453,67543.0,67542.0,0.38845204]
[1729634642385,0.00081453,67543.0,67542.0,0.53447965]
[1729634642868,0.00081453,67543.0,67542.0,0.42137601]
[1729634643076,0.00081453,67543.0,67542.0,0.52947965]
[1729634645912,0.00081453,67543.0,67542.0,0.39837601]
[1729634646131,0.00081453,67543.0,67542.0,0.60011935]
[1729634646359,0.00081453,67543.0,67542.0,0.81562299]
[1729634646550,0.00081453,67543.0,67542.0,0.81762299]
[1729634646812,0.00081453,67543.0,67542.0,0.81562299]
[1729634647258,0.00081453,67543.0,67542.0,0.81762299]
[1729634647481,0.00081453,67543.0,67542.0,0.59941571]
[1729634647726,0.00081453,67543.0,67542.0,0.81562299]
[1729634648390,0.00081453,67543.0,67542.0,0.91022299]
[1729634648626,0.00081453,67543.0,67542.0,0.91222299]
[1729634651716,0.00081453,67543.0,67542.0,0.69401571]
[1729634651940,0.00081453,67543.0,67542.0,0.51501571]
[1729634652159,0.00081453,67543.0,67542.0,0.62311935]
[1729634652602,0.00081453,67543.0,67542.0,0.73622299]
[1729634656300,0.00081453,67543.0,67542.0,0.63811935]
[1729634656513,0.00081453,67543.0,67542.0,0.74622299]
[1729634659017,0.00081453,67543.0,67542.0,0.7903732]
[1729634659664,5.3e-07,67545.0,67544.0,0.01451686]
[1729634659873,0.001678,67556.0,67555.0,0.35864086]
[1729634660088,0.001678,67556.0,67555.0,0.72380729]
[1729634664371,0.000839,67562.0,67558.0,0.27773486]
[1729634664593,0.000839,67562.0,67560.0,0.49193814]
[1729634664825,0.000839,67562.0,67560.0,0.64089729]
[1729634665049,0.000839,67562.0,67560.0,0.64289729]
[1729634665276,0.000839,67562.0,67560.0,0.64089729]
[1729634665770,0.000839,67562.0,67560.0,0.64289729]
[1729634665992,0.000839,67562.0,67560.0,0.84464063]
[1729634666208,0.000839,67562.0,67560.0,0.73653699]
[1729634668633,0.00077978,67561.0,67560.0,0.84464063]
[1729634669724,0.00077978,67561.0,67560.0,0.73453699]
[1729634670639,0.00077978,67561.0,67560.0,0.51832971]
[1729634670870,0.00077978,67561.0,67560.0,0.39669001]
[1729634671082,0.00077978,67561.0,67560.0,0.50479365]
[1729634671304,0.00077978,67561.0,67560.0,0.61289729]
[1729634672664,0.00077978,67561.0,67560.0,0.63589729]
[1729634673569,0.00077978,67561.0,67560.0,0.82830093]
[1729634673790,0.00077978,67561.0,67560.0,0.98226008]
[1729634674907,0.00077978,67561.0,67560.0,0.87415644]
[1729634675815,0.00077978,67561.0,67560.0,0.98226008]
[1729634676042,0.00077978,67561.0,67560.0,0.98426008]
[1729634683010,0.001254,67568.0,67567.0,0.48200117]
[1729634683259,0.001254,67568.0,67567.0,0.72363286]
[1729634683689,0.001254,67568.0,67567.0,0.73355683]
[1729634684600,0.000839,67583.0,67582.0,0.23776389]
[1729634684820,0.000839,67583.0,67582.0,0.49482668]
[1729634685819,0.000839,67583.0,67582.0,0.56892668]
[1729634689241,0.000839,67583.0,67582.0,0.62321939]
[1729634698833,0.000839,67583.0,67582.0,0.46082304]
[1729634699041,0.000839,67583.0,67582.0,0.56892668]
[1729634701499,0.000839,67583.0,67582.0,0.90891838]
[1729634701708,0.000839,67583.0,67582.0,0.68695429]
[1729634701907,0.000839,67583.0,67582.0,0.76805429]
[1729634702078,0.000839,67583.0,67582.0,0.91701344]
[1729634703343,0.000839,67583.0,67582.0,0.94501344]
[1729634705082,0.000839,67583.0,67582.0,0.55184701]
[1729634705316,0.000839,67583.0,67582.0,0.65995065]
[1729634708410,0.000839,67583.0,67582.0,0.76805429]
[1729634710021,0.000839,67583.0,67582.0,0.65995065]
[1729634711419,0.000839,67583.0,67582.0,0.76805429]
[1729634711608,0.000839,67583.0,67582.0,0.91701344]
[1729634715406,0.000838,67596.0,67595.0,0.00459289]
[1729634715619,0.000838,67596.0,67595.0,0.39957932]
[1729634715781,0.000838,67596.0,67595.0,0.50472465]
[1729634715989,0.01091382,67596.0,67595.0,0.56401736]
[1729634716142,0.000838,67596.0,67595.0,0.56401736]
[1729634717213,0.000838,67596.0,67595.0,0.58701736]
[1729634719343,0.000838,67596.0,67595.0,0.45591372]
[1729634719590,0.000838,67596.0,67595.0,0.672121]
[1729634721773,0.000838,67596.0,67595.0,0.39662101]
[1729634722022,0.000838,67596.0,67595.0,0.50472465]
[1729634722507,0.000838,67596.0,67595.0,0.61282829]
[1729634742602,0.000838,67596.0,67595.0,0.39662101]
[1729634742848,0.000838,67596.0,67595.0,0.61282829]
[1729634743224,0.000838,67596.0,67595.0,0.73598052]
[1729634748465,0.000838,67596.0,67595.0,0.84028052]
[1729634748915,0.000838,67596.0,67595.0,0.93038052]
[1729634749330,0.01386562,67609.0,67599.0,0.28565486]
[1729634749496,0.000838,67611.0,67599.0,0.95209587]
[1729634749706,0.000838,67611.0,67599.0,0.84103431]
[1729634753273,0.000838,67611.0,67599.0,0.81722129]
[1729634753497,0.000838,67611.0,67599.0,0.47791401]
[1729634753705,0.000838,67611.0,67599.0,0.69412129]
[1729634754357,0.000838,67611.0,67599.0,0.68912129]
[1729634754563,0.000838,67611.0,67599.0,0.61282129]
[1729634756371,0.000838,67611.0,67599.0,0.76178044]
[1729634757659,0.000838,67611.0,67599.0,0.61282129]
[1729634758663,0.100826,67600.0,67599.0,0.61282129]
[1729634763759,0.100826,67600.0,67599.0,0.90002493]
[1729634763975,0.100826,67600.0,67599.0,0.85800992]
[1729634764193,0.100826,67600.0,67599.0,0.98419252]
[1729634764405,0.100826,67600.0,67599.0,1.13315167]
[1729634764622,0.100826,67600.0,67599.0,1.287393]
[1729634764847,0.100826,67600.0,67599.0,1.17716668]
[1729634765067,0.100826,67600.0,67599.0,1.17516668]
[1729634765280,0.100826,67600.0,67599.0,1.28539111]
[1729634765730,0.100826,67600.0,67599.0,1.17516668]
[1729634766401,0.000838,67611.0,67610.0,0.24763286]
[1729634766640,0.000838,67611.0,67610.0,0.63661231]
[1729634767327,0.000838,67611.0,67610.0,0.64161231]
[1729634768986,0.0001,67621.0,67620.0,0.34941286]
[1729634769203,0.000838,67636.0,67622.0,0.46881614]
[1729634769456,0.000838,67636.0,67622.0,0.87203116]
[1729634769672,4.54568093,67623.0,67622.0,0.95933116]
[1729634770101,4.54568093,67623.0,67622.0,0.85122752]
[1729634770761,4.54568093,67623.0,67622.0,0.95933116]
[1729634770974,4.54568093,67623.0,67622.0,0.85122752]
[1729634776250,4.54568093,67623.0,67622.0,1.07319161]
[1729634776438,4.54568093,67623.0,67622.0,0.85122752]
[1729634776857,4.54568093,67623.0,67622.0,0.63502024]
[1729634777104,4.54568093,67623.0,67622.0,0.85122752]
[1729634780683,4.54568093,67623.0,67622.0,0.63502024]
[1729634780886,4.54568093,67623.0,67622.0,0.85122752]
[1729634783539,4.54568093,67623.0,67622.0,0.85287952]
[1729634783764,4.54650693,67623.0,67622.0,0.85287952]
[1729634786091,4.54650693,67623.0,67622.0,0.74477588]
[1729634790047,4.54650693,67623.0,67622.0,0.74677588]
[1729634790687,4.54650693,67623.0,67622.0,0.74624706]
[1729634793550,4.54650693,67623.0,67622.0,0.8543507]
[1729634798353,4.54650693,67623.0,67622.0,0.9743507]
[1729634804633,3.88333035,67623.0,67622.0,1.45773343]
[1729634804867,3.79460235,67623.0,67622.0,1.32586934]
[1729634805105,3.45946588,67623.0,67622.0,1.20271711]
[1729634805352,3.25337525,67623.0,67622.0,1.4246812]
[1729634805579,3.23354608,67623.0,67622.0,1.20271711]
[1729634805811,3.20397008,67623.0,67622.0,1.20271711]
[1729634806266,3.14481808,67623.0,67622.0,1.20271711]
[1729634806550,0.000838,67636.0,67622.0,1.20271711]
[1729634806551,0.000838,67636.0,67634.0,0.41537204]
[1729634806766,0.22196409,67659.0,67658.0,0.25200904]
[1729634806985,0.22196409,67659.0,67658.0,0.42892355]
[1729634807215,0.0916,67675.0,67663.0,0.25200004]
[1729634807428,5.231e-05,67677.0,67671.0,0.26198404]
[1729634807657,5.231e-05,67677.0,67671.0,0.42394319]
[1729634807891,5.231e-05,67677.0,67671.0,0.65015047]
[1729634808347,5.231e-05,67677.0,67671.0,0.76923597]
[1729634808582,5.231e-05,67677.0,67671.0,0.77123597]
[1729634808812,5.231e-05,67677.0,67671.0,0.84533597]
[1729634809035,5.231e-05,67677.0,67671.0,0.85533597]
[1729634809930,5.231e-05,67677.0,67671.0,0.68768958]
[1729634810381,3.1e-07,67677.0,67676.0,0.43028904]
[1729634810606,9.891e-05,67685.0,67684.0,0.27495804]
[1729634810831,9.891e-05,67685.0,67684.0,0.59356358]
[1729634811297,0.00288857,67712.0,67699.0,0.137941]
[1729634811298,0.0177941,67703.0,67699.0,0.137941]
[1729634811554,0.0177941,67703.0,67699.0,0.75918097]
[1729634811760,0.00410817,67703.0,67702.0,0.27492304]
[1729634811972,0.00410817,67703.0,67702.0,0.42683577]
[1729634812204,0.00410817,67703.0,67702.0,0.42388219]
[1729634812443,0.00410817,67703.0,67702.0,0.39588219]
[1729634812687,0.00410817,67703.0,67702.0,0.42388219]
[1729634814101,0.00410817,67703.0,67702.0,0.40088219]
[1729634815574,0.00410817,67703.0,67702.0,0.39588219]
[1729634815783,0.18370817,67703.0,67702.0,0.1]
[1729634815993,0.18370817,67703.0,67700.0,0.105]
[1729634816203,0.18370817,67703.0,67701.0,0.1]
[1729634816420,0.19650045,67703.0,67697.0,0.00406407]
[1729634816672,0.19650045,67703.0,67699.0,0.22196409]
[1729634816884,0.19650045,67703.0,67699.0,0.132941]
[1729634817090,0.00093593,67700.0,67693.0,0.22196409]
[1729634817320,0.16764639,67698.0,67693.0,0.22196409]
[1729634817565,0.0815,67697.0,67693.0,0.22196409]
[1729634817778,0.16764639,67694.0,67693.0,0.22196409]
[1729634818014,0.01277202,67697.0,67696.0,0.00406407]
[1729634818270,0.16764639,67698.0,67696.0,0.01398804]
[1729634818472,0.16764639,67698.0,67697.0,0.137945]
[1729634818853,0.16764639,67698.0,67697.0,0.237945]
[1729634819296,0.16764639,67698.0,67697.0,0.232945]
[1729634819681,0.16764639,67700.0,67696.0,0.1]
[1729634819902,0.00493417,67703.0,67699.0,0.132941]
[1729634820127,0.00493417,67703.0,67701.0,0.132937]
[1729634820556,0.00493417,67703.0,67699.0,0.132939]
[1729634820748,0.26574639,67702.0,67695.0,0.1]
[1729634820952,0.0981,67702.0,67701.0,0.132937]
[1729634822770,0.26574639,67702.0,67700.0,0.132939]
[1729634822987,0.26574639,67702.0,67694.0,0.00992397]
[1729634822988,0.26574639,67702.0,67691.0,0.00992397]
[1729634823214,0.16764639,67693.0,67688.0,0.005]
[1729634823417,0.24934639,67693.0,67686.0,0.265931]
[1729634823625,0.0961,67692.0,67686.0,0.265931]
[1729634823848,0.0961,67692.0,67680.0,0.27087997]
[1729634823849,0.16764639,67688.0,67680.0,0.265956]
[1729634824065,0.16764639,67688.0,67667.0,0.266005]
[1729634824066,0.00593593,67679.0,67667.0,0.266005]
[1729634824275,0.00593593,67679.0,67661.0,0.00992397]
[1729634824276,0.16764639,67672.0,67663.0,0.266022]
[1729634824490,0.24934639,67672.0,67666.0,0.266008]
[1729634824698,0.24934639,67672.0,67671.0,0.207096]
[1729634824904,0.24934639,67672.0,67671.0,0.0741]
[1729634825960,0.25028232,67672.0,67671.0,0.0741]
[1729634826175,0.25028232,67672.0,67661.0,0.26603]
[1729634826176,0.00093593,67671.0,67669.0,0.22196409]
[1729634826810,0.00093593,67671.0,67666.0,0.133005]
[1729634827039,0.00093593,67671.0,67661.0,0.27103]
[1729634827040,0.16764639,67667.0,67665.0,0.22196409]
[1729634827512,0.16764639,67667.0,67653.0,0.133031]
[1729634827513,0.13894993,67662.0,67653.0,0.133031]
[1729634827745,0.13894993,67662.0,67650.0,0.266075]
[1729634827746,0.16764639,67654.0,67646.0,0.266087]
[1729634827929,0.00593593,67655.0,67651.0,0.133034]
[1729634828189,0.00593593,67655.0,67649.0,0.48804109]
[1729634828190,0.16764639,67652.0,67649.0,0.48804109]
[1729634828392,0.16764639,67652.0,67651.0,0.133035]
[1729634830115,0.16764639,67652.0,67649.0,0.22196409]
[1729634830341,0.16764639,67652.0,67651.0,0.133035]
[1729634830560,0.16764639,67652.0,67648.0,0.00165]
[1729634830788,0.18063744,67652.0,67651.0,0.133035]